lending/lending_fUSD_20240111
["ID","MTS","AMOUNT","RATE_DAILY","PERIOD"]
[311174892,1704966648650,-500.0,0.00036986,4]
[311174893,1704966648660,-500.0,0.00036986,4]
[311174894,1704966648670,-500.0,0.00036986,4]
[311174895,1704966648679,-1109.41,0.00036986,5]
[311174896,1704966648688,-487.70011117,0.00036986,4]
[311174897,1704966648698,-195.6183,0.00036986,4]
[311174898,1704966648708,-500.0,0.00036986,4]
[311174899,1704966648719,-588.96551081,0.00036986,4]
[311174900,1704966648730,-500.0,0.00036986,4]
[311174901,1704966648740,-500.0,0.00036986,4]
[311174902,1704966648749,-500.0,0.00036986,4]
[311174903,1704966648762,-6131.25642234,0.00036996,4]
[311174904,1704966648771,-164.17577064,0.00036996,4]
[311174905,1704966648781,-1261.58582889,0.00036996,4]
[311174906,1704966648790,-2258.755836,0.00036996,4]
[311174907,1704966648800,-3357.3735176,0.00036996,2]
[311174908,1704966648809,-2606.56051568,0.00036996,2]
[311174909,1704966648974,-164.22572481,0.00036711,4]
[311174910,1704966648984,-250.0,0.00036799,2]
[311174911,1704966648993,-3325.06998383,0.00036996,2]
[311174912,1704966649005,-446.712,0.00036996,2]
[311174913,1704966649016,-2660.48040484,0.00036996,2]
[311174914,1704966649027,-664.62392199,0.00036996,2]
[311174915,1704966649039,-2474.61482204,0.00036996,2]
[311174916,1704966649051,-280.07690255,0.00036996,2]
[311174917,1704966649131,-0.02754034,0.00036996,2]
[311174918,1704966649143,-17312.24432753,0.00036996,2]
[311174919,1704966649154,-2208.5439954,0.00036996,2]
[311174920,1704966649165,-155.41027789,0.00036998,4]
[311174921,1704966649176,-155.0,0.00036998,4]
[311174922,1704966649188,-1815.02650788,0.00036998,4]
[311174923,1704966649200,-889.14897708,0.00036998,4]
[311174924,1704966669314,7732.5058,0.00023,2]
[311174925,1704966669342,89383.147,0.00023,2]
[311174926,1704966669377,293330.74443424,0.00023,2]
[311174927,1704966669399,2760.1954,0.00023,2]
[311174928,1704966669423,58069.12090996,0.00023,2]
[311174929,1704966669472,63668.0,0.00023,2]
[311174930,1704966669507,136912.0,0.00023,2]
[311174931,1704966669534,234067.24375876,0.00023,2]
[311174932,1704966669605,3969.71223933,0.0002509,2]
[311174933,1704966678074,150.62461309,0.00021,2]
[311174934,1704966691111,535.46710297,0.0001,2]
[311174935,1704966695466,8000.0,0.00011,2]
[311174936,1704966712607,16083.96196077,6.94e-05,2]
[311174937,1704966719441,5607.87225538,0.000155,2]
[311174938,1704966745136,1878.72740287,0.00015,2]
[311174939,1704966771124,1014.29486469,0.00015,14]
[311174940,1704966828522,598450.98865936,0.00023,2]
[311174943,1704967480741,350.0,0.00025,3]
[311174944,1704967481670,400.0,0.00027,3]
[311174948,1704967551099,-278.62795246,0.00028767,2]
[311174949,1704967551120,-1000.0,0.00028768,2]
[311174950,1704967551139,-769.49127403,0.00028768,2]
[311174951,1704967651260,-233.72621737,0.00028124,2]
[311174952,1704967654098,-2931.74686859,0.00028124,2]
[311174953,1704967712153,-3928.82337372,0.0002812,2]
[311174954,1704967712176,-1000.0,0.00028121,2]
[311174955,1704967712199,-2142.52854897,0.00028122,2]
[311174956,1704967712221,-150.0,0.00028122,2]
[311174957,1704967712244,-1358.65655747,0.00028123,2]
[311174958,1704967712266,-2316.58936716,0.00028123,2]
[311174959,1704967712288,-8499.59893833,0.00028124,2]
[311174960,1704967712310,-300.0,0.00028767,2]
[311174961,1704967712332,-150.0,0.00028767,2]
[311174962,1704967712354,-150.0,0.00028767,2]
[311174963,1704967712376,-1093.89750418,0.00028988,2]
[311174964,1704967712397,-663.4,0.00028994,2]
[311174965,1704967712419,-2466.24,0.00028994,2]
[311174966,1704967712441,-490.0544349,0.00028996,2]
[311174967,1704967712463,-4002.11843427,0.00028997,2]
[311174968,1704967712485,-7066.28607176,0.00028997,2]
[311174969,1704967712507,-472.27624596,0.00028997,2]
[311174970,1704967712530,-302.0096739,0.00028997,2]
[311174971,1704967712553,-155.78239191,0.00028997,2]
[311174972,1704967712575,-165.44838224,0.00028997,2]
[311174973,1704967712598,-252.79,0.00028997,2]
[311174974,1704967712621,-1946.47830428,0.00028998,2]
[311174975,1704967712645,-60927.02177095,0.00028999,2]
[311174976,1704967718809,-37545.45503404,0.00028999,2]
[311174977,1704967718832,-7879.36188141,0.00029,15]
[311174978,1704967718856,-450.0,0.00029,3]
[311174982,1704967723155,301.81970747,0.00028998,2]
[311174983,1704967732380,1000.0,0.00028885,2]
[311174984,1704967745102,-200.0,0.00029255,2]
[311174985,1704967745123,-115.15237881,0.00029349,2]
[311174988,1704967750100,1000.0,0.00028885,2]
[311174989,1704967750131,-301.58762119,0.00029349,2]
[311174990,1704967750151,-330.79,0.00029418,2]
[311174991,1704967750171,-111.63166951,0.00029506,2]
[311174992,1704967754079,-138.36833049,0.00029506,2]
[311174993,1704967754098,-493.28,0.00029613,2]
[311174994,1704967754117,-162.31648333,0.00029644,2]
[311174995,1704967755092,-37.68351667,0.00029644,2]
[311174996,1704967755111,-150.0,0.00029777,2]
[311174997,1704967755130,-221.55945487,0.00029778,2]
[311174998,1704967770098,-574.35128739,0.00029778,2]
[311174999,1704967770118,-1315.51277525,0.00029778,2]
[311175000,1704967770138,-8548.56724501,0.00029778,2]
[311175001,1704967770158,-1733.19372709,0.00029779,2]
[311175004,1704967772152,1000.0,0.00028885,2]
[311175005,1704967774093,-915.8469378,0.00029779,2]
[311175006,1704967788114,1000.0,0.00028885,2]
[311175009,1704967812112,717.85806081,0.00028885,2]
[311175034,1704967831774,-1279.78270883,0.00029779,2]
[311175036,1704967831786,-3347.00806566,0.0002978,2]
[311175038,1704967831798,-735.78976666,0.0002978,2]
[311175039,1704967831810,-43141.82838493,0.0002978,2]
[311175040,1704967831820,-18373.90429736,0.0003,4]
[311175041,1704967831943,-33837.5402178,0.0003,4]
[311175042,1704967831953,-377.84,0.00030099,2]
[311175043,1704967831963,-175.56,0.00030358,2]
[311175044,1704967831973,-672.0,0.00030806,2]
[311175045,1704967831983,-416.74,0.00031613,2]
[311175046,1704967831993,-236.24,0.00031831,2]
[311175047,1704967832003,-155.36162392,0.00032,2]
[311175048,1704967832013,-155.47,0.00032653,2]
[311175049,1704967832023,-2000.0,0.00032673,2]
[311175050,1704967832033,-210.0,0.00032755,3]
[311175051,1704967832043,-236.24,0.00032809,2]
[311175052,1704967832053,-747.63,0.00033146,15]
[311175053,1704967832062,-10802.15,0.00033146,2]
[311175054,1704967832071,-328.0,0.00033205,2]
[311175055,1704967832081,-1952.0,0.000334,2]
[311175056,1704967832092,-4166.64,0.00033584,2]
[311175057,1704967832101,-153.84,0.00033592,2]
[311175058,1704967832110,-236.24,0.00033788,2]
[311175059,1704967832120,-158.65,0.00033813,2]
[311175060,1704967832129,-416.74,0.00033877,2]
[311175061,1704967832139,-1000.0,0.00034,4]
[311175062,1704967832148,-218.78405352,0.00034,4]
[311175063,1704967832158,-1000.0,0.000344,2]
[311175064,1704967832167,-16653.807257,0.0003452,2]
[311175066,1704967832176,-828.44,0.00034521,2]
[311175068,1704967832185,-153.84,0.0003461,2]
[311175070,1704967832194,-250.0,0.00034654,111]
[311175072,1704967832203,-672.0,0.00034657,2]
[311175073,1704967832212,-180.0,0.00034658,2]
[311175075,1704967832221,-1200.44,0.00034672,2]
[311175077,1704967832232,-158.65,0.00034694,2]
[311175079,1704967832241,-425.400001,0.000347,2]
[311175081,1704967832251,-236.24,0.00034766,2]
[311175084,1704967832260,-24980.710886,0.00034794,2]
[311175086,1704967832270,-33307.614515,0.00034931,2]
[311175088,1704967832279,-756.57015539,0.00034968,7]
[311175090,1704967832287,-161.87,0.0003499,2]
[311175091,1704967832297,-54994.0791442,0.00035,2]
[311175093,1704967832306,-958.68717456,0.00035068,2]
[311175096,1704967832318,-4279.56186906,0.00035068,2]
[311175098,1704967832329,-4780.68491701,0.00035068,2]
[311175110,1704967834034,-1475.13,0.00035068,2]
[311175111,1704967834046,-11467.62509875,0.00035068,2]
[311175112,1704967834057,-658.34702874,0.00035068,2]
[311175129,1704967837837,-4963.49662326,0.00035068,2]
[311175130,1704967837849,-13050.98543162,0.00035068,2]
[311175131,1704967837860,-153.96,0.00035094,2]
[311175132,1704967837870,-204.0,0.0003515,2]
[311175133,1704967837879,-203.0,0.0003515,2]
[311175134,1704967837889,-23382.53986836,0.00035342,2]
[311175135,1704967837899,-2393.20061037,0.00035342,2]
[311175136,1704967837911,-7809.55444578,0.00035342,2]
[311175137,1704967838006,-418.39942505,0.00035342,2]
[311175138,1704967838017,-1362.44530093,0.00035342,2]
[311175139,1704967838126,-22922.18575051,0.00035342,2]
[311175140,1704967838136,-1000.0,0.000354,2]
[311175141,1704967838145,-192.83,0.0003547,2]
[311175142,1704967838154,-158.65,0.00035575,2]
[311175143,1704967838163,-2122.06,0.00035616,3]
[311175144,1704967838172,-2122.06,0.00035616,3]
[311175145,1704967838181,-2122.06,0.00035616,3]
[311175146,1704967838190,-2122.06,0.00035616,3]
[311175147,1704967838199,-2122.06,0.00035616,3]
[311175148,1704967838208,-2122.06,0.00035616,3]
[311175149,1704967838216,-2122.06,0.00035616,3]
[311175150,1704967838225,-2122.06,0.00035616,3]
[311175151,1704967838234,-2122.06,0.00035616,3]
[311175152,1704967838243,-2122.06,0.00035616,3]
[311175153,1704967838252,-2122.06,0.00035616,3]
[311175154,1704967838261,-2122.06,0.00035616,3]
[311175155,1704967838270,-2122.06,0.00035616,3]
[311175156,1704967838279,-2122.06,0.00035616,3]
[311175157,1704967838288,-2122.06,0.00035616,3]
[311175158,1704967838297,-2122.06,0.00035616,3]
[311175160,1704967838306,-2122.06,0.00035616,3]
[311175161,1704967838315,-2122.06,0.00035616,3]
[311175163,1704967838324,-2122.06,0.00035616,3]
[311175165,1704967838332,-2122.06,0.00035616,3]
[311175167,1704967838341,-2122.06,0.00035616,3]
[311175169,1704967838350,-2122.06,0.00035616,3]
[311175170,1704967838359,-2122.06,0.00035616,3]
[311175180,1704967838487,-2122.21510027,0.00035616,3]
[311175182,1704967838496,-151.69,0.00035616,2]
[311175183,1704967838505,-153.84,0.00035628,2]
[311175185,1704967838514,-756.57015532,0.00035644,7]
[311175187,1704967838523,-236.24,0.00035745,2]
[311175189,1704967838532,-828.44,0.00035798,2]
[311175190,1704967838541,-3955.18667698,0.00035818,12]
[311175192,1704967838550,-495.63397963,0.00035818,12]
[311175194,1704967838559,-500.0,0.000359,2]
[311175196,1704967838569,-788.8222,0.00036,2]
[311175198,1704967838578,-15656.41091465,0.00036,3]
[311175199,1704967838590,-5257.05587004,0.00036,3]
[311175200,1704967838602,-6658.91040818,0.00036,3]
[311175201,1704967838610,-150.18,0.00036,2]
[311175202,1704967838621,-234.40111,0.00036048,6]
[311175203,1704967838629,-1280.41096754,0.00036089,2]
[311175204,1704967838638,-1280.4109675,0.00036089,2]
[311175205,1704967838647,-1280.4109675,0.00036089,2]
[311175206,1704967838656,-1280.4109675,0.00036089,2]
[311175207,1704967838665,-1280.4109675,0.00036089,2]
[311175208,1704967838674,-151.40111,0.00036098,4]
[311175209,1704967838683,-416.74,0.0003614,2]
[311175210,1704967838692,-234.40111,0.00036148,6]
[311175211,1704967838700,-151.40111,0.00036198,4]
[311175212,1704967838709,-238.76305591,0.00036201,8]
[311175213,1704967838718,-353.00145401,0.00036218,10]
[311175214,1704967838729,-646.99854599,0.00036218,10]
[311175215,1704967838738,-374.39087692,0.00036245,2]
[311175216,1704967838747,-234.40111,0.00036248,6]
[311175218,1704967838756,-153.96,0.00036263,2]
[311175220,1704967838766,-151.40111,0.00036298,4]
[311175222,1704967838774,-756.57015532,0.0003632,7]
[311175224,1704967838784,-167.82,0.00036344,2]
[311175226,1704967838793,-318.0,0.00036345,2]
[311175228,1704967838802,-234.40111,0.00036348,6]
[311175230,1704967838811,-151.40111,0.00036398,4]
[311175232,1704967838820,-1000.0,0.000364,2]
[311175234,1704967838829,-13989.78412158,0.00036426,2]
[311175236,1704967838840,-706.17412331,0.00036426,2]
[311175239,1704967838855,-504.77624372,0.00036426,2]
[311175241,1704967838867,-501.08022391,0.00036426,2]
[311175273,1704967840230,-540.08943656,0.00036426,2]
[311175274,1704967840841,-3431.09585092,0.00036426,2]
[311175275,1704967840851,-2269.0,0.00036426,2]
[311175276,1704967840860,-7325.0,0.00036426,2]
[311175277,1704967840870,-150.0,0.00036426,2]
[311175278,1704967840880,-234.40111,0.00036448,6]
[311175279,1704967840890,-151.40111,0.00036498,4]
[311175280,1704967840899,-472.38131072,0.0003654,2]
[311175281,1704967840909,-234.40111,0.00036548,6]
[311175282,1704967840919,-200.0,0.00036579,7]
[311175283,1704967840928,-151.40111,0.00036598,4]
[311175284,1704967840938,-1702.84422209,0.00036612,2]
[311175285,1704967840949,-2292.762,0.00036612,2]
[311175286,1704967840958,-173.92638,0.0003663,2]
[311175287,1704967840968,-1280.4109675,0.00036636,2]
[311175288,1704967840978,-153.84,0.00036646,2]
[311175289,1704967840987,-234.40111,0.00036648,6]
[311175290,1704967840997,-151.40111,0.00036698,4]
[311175291,1704967841006,-500.0,0.000367,2]
[311175292,1704967841016,-200.0,0.00036703,2]
[311175293,1704967841026,-200.0,0.00036703,10]
[311175294,1704967841035,-800.0,0.00036703,10]
[311175295,1704967841044,-200.0,0.00036703,10]
[311175296,1704967841054,-800.0,0.00036703,10]
[311175297,1704967841063,-460.20346102,0.00036706,4]
[311175298,1704967841073,-1134.32804712,0.00036706,2]
[311175299,1704967841082,-380.59839805,0.00036706,4]
[311175300,1704967841091,-184.16613493,0.00036706,4]
[311175301,1704967841100,-155.0,0.00036706,4]
[311175302,1704967841110,-155.0,0.00036706,4]
[311175303,1704967841119,-485.59833642,0.0003671,4]
[311175304,1704967841128,-301.84234281,0.00036712,4]
[311175305,1704967841137,-500.0,0.00036712,4]
[311175307,1704967841146,-500.0,0.00036712,4]
[311175309,1704967841155,-500.0,0.00036712,4]
[311175311,1704967841164,-500.0,0.00036712,4]
[311175313,1704967841173,-531.07866307,0.00036712,4]
[311175314,1704967841183,-500.0,0.00036712,4]
[311175315,1704967841192,-500.0,0.00036712,4]
[311175316,1704967841201,-500.0,0.00036712,4]
[311175317,1704967841210,-500.0,0.00036712,4]
[311175318,1704967841219,-500.0,0.00036712,4]
[311175319,1704967841229,-532.56887879,0.00036712,4]
[311175320,1704967841238,-334.76085724,0.00036712,4]
[311175321,1704967841247,-429.37510136,0.00036712,4]
[311175322,1704967841257,-500.0,0.00036712,4]
[311175323,1704967841266,-500.0,0.00036712,4]
[311175324,1704967841274,-606.5576013,0.00036712,4]
[311175325,1704967841284,-555.91322762,0.00036712,4]
[311175326,1704967841293,-447.91930665,0.00036712,4]
[311175327,1704967841302,-500.0,0.00036712,4]
[311175328,1704967841311,-500.0,0.00036712,4]
[311175329,1704967841320,-500.0,0.00036712,4]
[311175330,1704967841330,-686.02,0.00036712,4]
[311175331,1704967841339,-437.74450543,0.00036712,4]
[311175332,1704967841349,-627.071818,0.00036712,4]
[311175333,1704967841358,-500.0,0.00036712,2]
[311175334,1704967841367,-500.0,0.00036712,4]
[311175335,1704967841377,-205.75993507,0.00036712,4]
[311175336,1704967841386,-252.52761274,0.00036712,4]
[311175337,1704967841395,-500.0,0.00036712,4]
[311175338,1704967841404,-500.0,0.00036712,4]
[311175339,1704967841414,-500.0,0.00036712,4]
[311175340,1704967841424,-500.0,0.00036712,4]
[311175341,1704967841432,-513.74932119,0.00036712,4]
[311175342,1704967841441,-500.0,0.00036712,4]
[311175343,1704967841451,-500.0,0.00036712,4]
[311175344,1704967841460,-500.0,0.00036712,4]
[311175345,1704967841469,-500.0,0.00036712,4]
[311175346,1704967841478,-387.26490723,0.00036712,4]
[311175347,1704967841487,-500.0,0.00036712,4]
[311175348,1704967841496,-500.0,0.00036712,4]
[311175349,1704967841505,-500.0,0.00036712,4]
[311175350,1704967841514,-391.68269686,0.00036712,4]
[311175351,1704967841523,-500.0,0.00036712,4]
[311175352,1704967841533,-500.0,0.00036712,4]
[311175353,1704967841542,-197.87618046,0.00036712,4]
[311175354,1704967841551,-500.0,0.00036712,4]
[311175355,1704967841560,-500.0,0.00036712,4]
[311175356,1704967841569,-168.10572075,0.00036712,4]
[311175357,1704967841578,-500.0,0.00036712,4]
[311175358,1704967841588,-500.0,0.00036712,4]
[311175359,1704967841597,-500.0,0.00036712,4]
[311175360,1704967841606,-500.0,0.00036712,4]
[311175361,1704967841615,-500.0,0.00036712,4]
[311175362,1704967841624,-500.0,0.00036712,4]
[311175363,1704967841633,-308.27587049,0.00036712,4]
[311175364,1704967841642,-500.0,0.00036712,4]
[311175365,1704967841653,-500.0,0.00036712,4]
[311175366,1704967841662,-500.0,0.00036712,4]
[311175367,1704967841672,-500.0,0.00036712,4]
[311175368,1704967841681,-500.0,0.00036712,4]
[311175369,1704967841690,-500.0,0.00036712,4]
[311175370,1704967841699,-500.0,0.00036712,4]
[311175371,1704967841708,-500.0,0.00036712,7]
[311175372,1704967841717,-500.0,0.00036712,4]
[311175373,1704967841727,-549.73098697,0.00036712,4]
[311175374,1704967841737,-500.0,0.00036712,4]
[311175375,1704967841746,-437.98620644,0.00036712,4]
[311175376,1704967841755,-500.0,0.00036712,4]
[311175377,1704967841765,-500.0,0.00036712,4]
[311175378,1704967841982,-500.0,0.00036712,4]
[311175379,1704967841992,-500.0,0.00036712,4]
[311175380,1704967842001,-500.0,0.00036712,4]
[311175381,1704967842010,-500.0,0.00036712,4]
[311175382,1704967842020,-500.0,0.00036712,4]
[311175383,1704967842029,-500.0,0.00036712,4]
[311175384,1704967842038,-505.2641856,0.00036712,4]
[311175385,1704967842048,-500.0,0.00036712,4]
[311175386,1704967842057,-524.9,0.00036712,4]
[311175387,1704967842066,-519.36152042,0.00036712,4]
[311175388,1704967842075,-500.0,0.00036712,4]
[311175389,1704967842084,-542.79737054,0.00036712,4]
[311175390,1704967842094,-500.0,0.00036712,4]
[311175391,1704967842103,-500.0,0.00036712,4]
[311175392,1704967842112,-500.0,0.00036712,4]
[311175393,1704967842121,-556.56354809,0.00036712,4]
[311175394,1704967842131,-227.18993462,0.00036712,4]
[311175395,1704967842140,-500.0,0.00036712,4]
[311175396,1704967842148,-535.48743053,0.00036712,4]
[311175397,1704967842158,-181.35809331,0.00036712,4]
[311175398,1704967842167,-500.0,0.00036712,4]
[311175399,1704967842176,-500.0,0.00036712,4]
[311175400,1704967842185,-174.31035593,0.00036712,4]
[311175401,1704967842194,-500.0,0.00036712,4]
[311175402,1704967842205,-500.0,0.00036712,4]
[311175403,1704967842214,-586.56,0.00036712,4]
[311175404,1704967842223,-440.46431138,0.00036712,4]
[311175405,1704967842232,-203.67632533,0.00036712,4]
[311175406,1704967842242,-542.86440151,0.00036712,4]
[311175407,1704967842251,-500.0,0.00036712,4]
[311175408,1704967842261,-500.0,0.00036712,4]
[311175409,1704967842270,-500.0,0.00036712,4]
[311175410,1704967842278,-500.0,0.00036712,4]
[311175411,1704967842286,-618.76851633,0.00036712,4]
[311175412,1704967842295,-581.94275812,0.00036712,4]
[311175413,1704967842304,-500.0,0.00036712,4]
[311175414,1704967842313,-604.67702413,0.00036712,4]
[311175415,1704967842322,-435.55441162,0.00036712,4]
[311175416,1704967842331,-500.0,0.00036712,4]
[311175417,1704967842340,-347.68250641,0.00036712,4]
[311175418,1704967842349,-500.0,0.00036712,4]
[311175419,1704967842358,-500.0,0.00036712,2]
[311175420,1704967842368,-578.02653264,0.00036712,4]
[311175421,1704967842378,-357.70148923,0.00036712,4]
[311175422,1704967842388,-500.0,0.00036712,4]
[311175423,1704967842398,-500.0,0.00036712,4]
[311175424,1704967842407,-544.36138251,0.00036712,4]
[311175425,1704967842416,-448.51011888,0.00036712,4]
[311175426,1704967842425,-309.78391441,0.00036712,4]
[311175427,1704967842434,-606.45,0.00036712,4]
[311175428,1704967842443,-554.24631046,0.00036712,4]
[311175429,1704967842452,-584.16433647,0.00036712,4]
[311175430,1704967842461,-500.0,0.00036712,4]
[311175431,1704967842470,-500.0,0.00036712,4]
[311175432,1704967842479,-500.0,0.00036712,4]
[311175433,1704967842488,-500.0,0.00036712,4]
[311175434,1704967842498,-190.10262295,0.00036712,4]
[311175435,1704967842507,-500.0,0.00036712,4]
[311175436,1704967842517,-500.0,0.00036712,4]
[311175438,1704967842526,-525.19344265,0.00036712,4]
[311175440,1704967842536,-524.21510687,0.00036712,4]
[311175442,1704967842545,-500.0,0.00036712,4]
[311175444,1704967842554,-500.0,0.00036712,4]
[311175446,1704967842563,-500.0,0.00036712,4]
[311175447,1704967842572,-500.0,0.00036712,4]
[311175449,1704967842582,-514.50894676,0.00036712,4]
[311175450,1704967842591,-500.0,0.00036712,4]
[311175451,1704967842600,-500.0,0.00036712,4]
[311175452,1704967842609,-519.95328549,0.00036712,4]
[311175453,1704967842618,-500.0,0.00036712,4]
[311175454,1704967842627,-500.0,0.00036712,4]
[311175455,1704967842637,-500.0,0.00036712,4]
[311175457,1704967842646,-1011.77,0.00036712,4]
[311175458,1704967842655,-500.0,0.00036712,4]
[311175460,1704967842664,-545.79681032,0.00036712,4]
[311175461,1704967842674,-500.0,0.00036712,4]
[311175464,1704967842682,-500.0,0.00036712,4]
[311175466,1704967842692,-393.88488233,0.00036712,4]
[311175468,1704967842701,-500.0,0.00036712,4]
[311175470,1704967842710,-500.0,0.00036712,4]
[311175472,1704967842720,-500.0,0.00036712,4]
[311175475,1704967842729,-500.0,0.00036712,4]
[311175477,1704967842738,-500.0,0.00036712,4]
[311175478,1704967842748,-500.0,0.00036712,4]
[311175479,1704967842757,-439.69376364,0.00036712,4]
[311175480,1704967842766,-160.18243705,0.00036712,4]
[311175481,1704967842775,-501.12612479,0.00036712,4]
[311175482,1704967842784,-500.0,0.00036712,4]
[311175483,1704967842793,-500.0,0.00036712,4]
[311175484,1704967842803,-500.0,0.00036712,4]
[311175485,1704967842814,-773.49,0.00036712,4]
[311175486,1704967842823,-500.0,0.00036712,4]
[311175487,1704967842832,-500.0,0.00036712,4]
[311175488,1704967842841,-500.0,0.00036712,4]
[311175489,1704967842851,-500.0,0.00036712,4]
[311175490,1704967842970,-503.8322602,0.00036712,4]
[311175491,1704967842980,-501.1337095,0.00036712,4]
[311175492,1704967842989,-500.0,0.00036712,4]
[311175493,1704967842998,-500.0,0.00036712,4]
[311175494,1704967843009,-500.0,0.00036712,4]
[311175495,1704967843018,-500.99751857,0.00036712,4]
[311175496,1704967843028,-500.0,0.00036712,4]
[311175497,1704967843039,-500.0,0.00036712,4]
[311175498,1704967843050,-504.8097327,0.00036712,4]
[311175499,1704967843059,-500.0,0.00036712,4]
[311175500,1704967843069,-500.0,0.00036712,4]
[311175501,1704967843078,-502.40890978,0.00036712,4]
[311175502,1704967843090,-500.0,0.00036712,4]
[311175503,1704967843101,-500.0,0.00036712,4]
[311175504,1704967843111,-500.0,0.00036712,4]
[311175505,1704967843122,-500.0,0.00036712,4]
[311175506,1704967843131,-500.0,0.00036712,4]
[311175507,1704967843140,-294.43262385,0.00036712,4]
[311175508,1704967843149,-500.0,0.00036712,4]
[311175509,1704967843158,-500.0,0.00036712,4]
[311175511,1704967843167,-500.0,0.00036712,4]
[311175512,1704967843175,-556.41,0.00036712,4]
[311175513,1704967843184,-500.0,0.00036712,4]
[311175514,1704967843193,-500.0,0.00036712,4]
[311175515,1704967843202,-500.0,0.00036712,4]
[311175516,1704967843211,-500.0,0.00036712,4]
[311175518,1704967843220,-500.0,0.00036712,4]
[311175519,1704967843229,-500.0,0.00036712,4]
[311175520,1704967843238,-500.0,0.00036712,4]
[311175521,1704967843247,-500.0,0.00036712,4]
[311175522,1704967843256,-500.0,0.00036712,4]
[311175523,1704967843266,-500.0,0.00036712,4]
[311175524,1704967843275,-500.0,0.00036712,4]
[311175525,1704967843284,-517.86012145,0.00036712,4]
[311175526,1704967843293,-509.78780002,0.00036712,4]
[311175527,1704967843302,-501.93150248,0.00036712,4]
[311175528,1704967843311,-500.0,0.00036712,4]
[311175529,1704967843321,-500.0,0.00036712,4]
[311175530,1704967843330,-560.47327801,0.00036712,4]
[311175532,1704967843339,-507.90821015,0.00036712,4]
[311175533,1704967843348,-500.0,0.00036712,4]
[311175534,1704967843356,-500.0,0.00036712,4]
[311175535,1704967843365,-500.0,0.00036712,4]
[311175536,1704967843375,-500.0,0.00036712,4]
[311175537,1704967843383,-500.0,0.00036712,4]
[311175538,1704967843393,-500.0,0.00036712,4]
[311175539,1704967843403,-502.34908204,0.00036712,4]
[311175540,1704967843412,-500.0,0.00036712,4]
[311175541,1704967843422,-500.0,0.00036712,4]
[311175542,1704967843430,-500.0,0.00036712,4]
[311175543,1704967843441,-500.0,0.00036712,4]
[311175544,1704967843450,-500.0,0.00036712,4]
[311175545,1704967843460,-504.03909967,0.00036712,4]
[311175546,1704967843469,-500.55813768,0.00036712,2]
[311175547,1704967843478,-500.0,0.00036712,4]
[311175548,1704967843488,-500.0,0.00036712,4]
[311175549,1704967843497,-1000.0,0.00036712,2]
[311175550,1704967843507,-500.0,0.00036712,4]
[311175551,1704967843516,-500.0,0.00036712,4]
[311175552,1704967843526,-500.0,0.00036712,4]
[311175553,1704967843535,-500.0,0.00036712,2]
[311175554,1704967843545,-500.0,0.00036712,4]
[311175555,1704967843554,-500.0,0.00036712,4]
[311175556,1704967843563,-500.0,0.00036712,4]
[311175557,1704967843573,-502.76148475,0.00036712,4]
[311175558,1704967843582,-505.71146006,0.00036712,4]
[311175559,1704967843591,-503.42015565,0.00036712,4]
[311175560,1704967843600,-531.86813062,0.00036712,4]
[311175561,1704967843609,-500.0,0.00036712,4]
[311175562,1704967843618,-513.11428422,0.00036712,4]
[311175563,1704967843628,-186.98583429,0.00036712,4]
[311175564,1704967843637,-500.0,0.00036712,4]
[311175565,1704967843646,-500.0,0.00036712,4]